[Event "*** Titled Tuesday Blitz"]
[Site "Chess.com"]
[Date "2020.05.12"]
[Round "4"]
[White "PavlovDanila"]
[Black "Radzio1987"]
[Result "1/2-1/2"]
[WhiteElo "2707"]
[BlackElo "2879"]
[TimeControl "180+1"]
[EndTime "10:38:15 PDT"]
[Termination "Game drawn by repetition"]

1. e4 {[%clk 0:02:40.4]} 1... c6 {[%clk 0:02:59]} 2. Nc3 {[%clk 0:02:40.1]} 2...
d5 {[%clk 0:02:59.9]} 3. Nf3 {[%clk 0:02:40.6]} 3... Bg4 {[%clk 0:02:59.8]} 4.
h3 {[%clk 0:02:40.5]} 4... Bxf3 {[%clk 0:02:59.8]} 5. Qxf3 {[%clk 0:02:41.4]}
5... e6 {[%clk 0:03:00.1]} 6. d3 {[%clk 0:02:41.5]} 6... Nd7 {[%clk 0:02:58.7]}
7. Bd2 {[%clk 0:02:41.8]} 7... g6 {[%clk 0:02:57.8]} 8. g4 {[%clk 0:02:41.6]}
8... Bg7 {[%clk 0:02:57.5]} 9. Bg2 {[%clk 0:02:37.1]} 9... Ne7 {[%clk 0:02:55]}
10. Qg3 {[%clk 0:02:36.2]} 10... Qb8 {[%clk 0:02:46.7]} 11. Qxb8+ {[%clk
0:02:34.9]} 11... Rxb8 {[%clk 0:02:45.9]} 12. f4 {[%clk 0:02:35.3]} 12... b5
{[%clk 0:02:42.5]} 13. O-O-O {[%clk 0:02:34.9]} 13... a5 {[%clk 0:02:40.5]} 14.
Rhf1 {[%clk 0:02:25.1]} 14... Nb6 {[%clk 0:02:26.6]} 15. f5 {[%clk 0:02:20.5]}
15... gxf5 {[%clk 0:02:18.7]} 16. exf5 {[%clk 0:02:10]} 16... exf5 {[%clk
0:02:18.4]} 17. gxf5 {[%clk 0:02:09.2]} 17... Bf6 {[%clk 0:02:18]} 18. Ne2
{[%clk 0:02:02.5]} 18... b4 {[%clk 0:02:06.6]} 19. b3 {[%clk 0:01:45.9]} 19...
Kd7 {[%clk 0:02:02.2]} 20. Nf4 {[%clk 0:01:44.8]} 20... Rhg8 {[%clk 0:02:00.7]}
21. Bf3 {[%clk 0:01:43.6]} 21... Nbc8 {[%clk 0:01:45.2]} 22. Nh5 {[%clk
0:01:39.7]} 22... Bd4 {[%clk 0:01:44.6]} 23. Bf4 {[%clk 0:01:33.4]} 23... Nd6
{[%clk 0:01:42]} 24. f6 {[%clk 0:01:33.1]} 24... Ng6 {[%clk 0:01:41.7]} 25. Bg4+
{[%clk 0:01:33.3]} 25... Kc7 {[%clk 0:01:41.7]} 26. Bg3 {[%clk 0:01:33.1]} 26...
Be5 {[%clk 0:01:14.2]} 27. Rde1 {[%clk 0:01:31.1]} 27... Bxg3 {[%clk 0:01:14]}
28. Nxg3 {[%clk 0:01:32]} 28... Rbe8 {[%clk 0:01:13.4]} 29. Nf5 {[%clk
0:01:28.1]} 29... Nxf5 {[%clk 0:01:12.4]} 30. Bxf5 {[%clk 0:01:29]} 30... Kd6
{[%clk 0:01:12.3]} 31. d4 {[%clk 0:01:25.1]} 31... Rxe1+ {[%clk 0:00:38.3]} 32.
Rxe1 {[%clk 0:01:23.9]} 32... Nh4 {[%clk 0:00:38.4]} 33. Bxh7 {[%clk 0:01:22.3]}
33... Rh8 {[%clk 0:00:38.5]} 34. Bd3 {[%clk 0:01:09.1]} 34... Rh6 {[%clk
0:00:38.4]} 35. Re7 {[%clk 0:00:53.8]} 35... Rxf6 {[%clk 0:00:37.7]} 36. Ra7
{[%clk 0:00:53.2]} 36... Nf3 {[%clk 0:00:37.2]} 37. Rxa5 {[%clk 0:00:41.1]}
37... Nxd4 {[%clk 0:00:35.3]} 38. Ra4 {[%clk 0:00:37.7]} 38... Kc5 {[%clk
0:00:24.9]} 39. Ra5+ {[%clk 0:00:37.4]} 39... Kd6 {[%clk 0:00:25.3]} 40. Ra4
{[%clk 0:00:36.3]} 40... Kc5 {[%clk 0:00:25.3]} 41. Ra5+ {[%clk 0:00:36.2]}
41... Kd6 {[%clk 0:00:25.4]} 1/2-1/2

[Event "*** Titled Tuesday Blitz"]
[Site "Chess.com"]
[Date "2020.05.12"]
[Round "4"]
[White "KaterynaLagno"]
[Black "RitvarsReimanis"]
[Result "1-0"]
[WhiteElo "2693"]
[BlackElo "2487"]
[TimeControl "180+1"]
[EndTime "10:38:15 PDT"]
[Termination "KaterynaLagno won on time"]

1. e4 {[%clk 0:03:00.9]} 1... c5 {[%clk 0:02:58.2]} 2. Nf3 {[%clk 0:03:00.4]}
2... Nc6 {[%clk 0:02:58.4]} 3. d4 {[%clk 0:02:59.8]} 3... cxd4 {[%clk
0:02:59.3]} 4. Nxd4 {[%clk 0:03:00.1]} 4... Nf6 {[%clk 0:02:59.9]} 5. Nc3 {[%clk
0:02:59.9]} 5... e5 {[%clk 0:02:59.5]} 6. Ndb5 {[%clk 0:03:00.2]} 6... d6 {[%clk
0:02:56.1]} 7. Bg5 {[%clk 0:02:59.2]} 7... a6 {[%clk 0:02:55.4]} 8. Na3 {[%clk
0:02:59.5]} 8... b5 {[%clk 0:02:50.7]} 9. Nd5 {[%clk 0:02:59.7]} 9... Be7 {[%clk
0:02:50.5]} 10. Bxf6 {[%clk 0:03:00.4]} 10... Bxf6 {[%clk 0:02:50.5]} 11. c3
{[%clk 0:03:01]} 11... Bg5 {[%clk 0:02:50.4]} 12. Nc2 {[%clk 0:02:59.8]} 12...
Rb8 {[%clk 0:02:50.8]} 13. Be2 {[%clk 0:02:59.6]} 13... O-O {[%clk 0:02:44]} 14.
O-O {[%clk 0:02:59.5]} 14... Ne7 {[%clk 0:02:41.7]} 15. Ncb4 {[%clk 0:02:56.3]}
15... Bb7 {[%clk 0:02:36.3]} 16. a4 {[%clk 0:02:51.4]} 16... a5 {[%clk
0:02:22.1]} 17. Nxe7+ {[%clk 0:02:49.7]} 17... Qxe7 {[%clk 0:02:21.4]} 18. Nd5
{[%clk 0:02:50.1]} 18... Bxd5 {[%clk 0:02:20.7]} 19. Qxd5 {[%clk 0:02:47.9]}
19... bxa4 {[%clk 0:02:11.3]} 20. Ra2 {[%clk 0:02:45.1]} 20... Qc7 {[%clk
0:01:47.9]} 21. Rd1 {[%clk 0:02:42.8]} 21... Be7 {[%clk 0:01:41.2]} 22. Bc4
{[%clk 0:02:30.9]} 22... Kh8 {[%clk 0:01:02]} 23. g3 {[%clk 0:02:00.7]} 23...
Rfc8 {[%clk 0:00:41.7]} 24. Bb5 {[%clk 0:01:54.9]} 24... g6 {[%clk 0:00:21.1]}
25. c4 {[%clk 0:01:53.6]} 25... Kg7 {[%clk 0:00:16]} 26. Rxa4 {[%clk 0:01:52.1]}
26... h5 {[%clk 0:00:13.6]} 27. Rda1 {[%clk 0:01:51]} 27... Bd8 {[%clk
0:00:12.5]} 28. b4 {[%clk 0:01:47]} 28... Qe7 {[%clk 0:00:03.2]} 29. bxa5 {[%clk
0:01:45.8]} 29... f5 {[%clk 0:00:04.1]} 30. a6 {[%clk 0:01:45.1]} 30... Ra8
{[%clk 0:00:03.5]} 31. Bc6 {[%clk 0:01:34.2]} 31... Ra7 {[%clk 0:00:03.1]} 32.
Bb7 {[%clk 0:01:34.8]} 32... Rc5 {[%clk 0:00:02.2]} 33. Qd3 {[%clk 0:01:35]}
33... fxe4 {[%clk 0:00:01.9]} 34. Qxe4 {[%clk 0:01:35.9]} 34... Qf6 {[%clk
0:00:02.1]} 35. Rd1 {[%clk 0:01:34.5]} 35... Rc7 {[%clk 0:00:03]} 36. Qd5 {[%clk
0:01:33]} 36... Be7 {[%clk 0:00:03.9]} 37. Ra3 {[%clk 0:01:24]} 37... Bf8 {[%clk
0:00:03.2]} 38. Rf3 {[%clk 0:01:24]} 38... Qe7 {[%clk 0:00:03.9]} 39. Qe4 {[%clk
0:01:19.3]} 39... Rcxb7 {[%clk 0:00:04.2]} 40. axb7 {[%clk 0:01:18]} 40... Rxb7
{[%clk 0:00:05.1]} 41. h4 {[%clk 0:01:13.4]} 41... Rc7 {[%clk 0:00:04.4]} 42.
Ra1 {[%clk 0:01:12.1]} 42... Qe6 {[%clk 0:00:04.7]} 43. Ra8 {[%clk 0:01:09.9]}
43... Rxc4 {[%clk 0:00:03.3]} 44. Qb7+ {[%clk 0:01:07.8]} 44... Be7 {[%clk
0:00:03.7]} 45. Re8 {[%clk 0:01:07.2]} 1-0

[Event "*** Titled Tuesday Blitz"]
[Site "Chess.com"]
[Date "2020.05.12"]
[Round "4"]
[White "Korchmar_Vasiliy"]
[Black "realmadridtv"]
[Result "1-0"]
[WhiteElo "2628"]
[BlackElo "2445"]
[TimeControl "180+1"]
[EndTime "10:38:15 PDT"]
[Termination "Korchmar_Vasiliy won by resignation"]

1. d4 {[%clk 0:03:00.9]} 1... Nf6 {[%clk 0:02:59.4]} 2. c4 {[%clk 0:03:00.6]}
2... g6 {[%clk 0:02:57.9]} 3. Nc3 {[%clk 0:03:00.5]} 3... d5 {[%clk 0:02:57.9]}
4. Nf3 {[%clk 0:03:00.2]} 4... Bg7 {[%clk 0:02:57.3]} 5. Bf4 {[%clk 0:03:00.8]}
5... O-O {[%clk 0:02:47]} 6. e3 {[%clk 0:03:00.7]} 6... c5 {[%clk 0:02:46.9]} 7.
dxc5 {[%clk 0:03:01.6]} 7... Ne4 {[%clk 0:02:46.8]} 8. Rc1 {[%clk 0:02:59.7]}
8... Nd7 {[%clk 0:02:41.2]} 9. cxd5 {[%clk 0:02:59.1]} 9... Qa5 {[%clk
0:02:40.7]} 10. Be2 {[%clk 0:02:59.6]} 10... Nxc3 {[%clk 0:02:37.8]} 11. bxc3
{[%clk 0:03:00.5]} 11... Nxc5 {[%clk 0:02:35.9]} 12. Be5 {[%clk 0:02:52.1]}
12... Bf5 {[%clk 0:02:18]} 13. Bxg7 {[%clk 0:02:35.1]} 13... Kxg7 {[%clk
0:02:18.9]} 14. O-O {[%clk 0:02:35.7]} 14... Kg8 {[%clk 0:02:15.5]} 15. Nd4
{[%clk 0:02:18.3]} 15... Bd7 {[%clk 0:02:06.7]} 16. Nb3 {[%clk 0:02:11.4]} 16...
Qc7 {[%clk 0:02:02.2]} 17. Qd4 {[%clk 0:02:03.2]} 17... Rac8 {[%clk 0:01:53.5]}
18. e4 {[%clk 0:01:41]} 18... e5 {[%clk 0:01:52.8]} 19. Qe3 {[%clk 0:01:27.3]}
19... f5 {[%clk 0:01:44.7]} 20. exf5 {[%clk 0:01:17.1]} 20... gxf5 {[%clk
0:01:42.5]} 21. d6 {[%clk 0:01:05.3]} 21... Qb6 {[%clk 0:01:05.9]} 22. Bc4+
{[%clk 0:00:57.7]} 22... Be6 {[%clk 0:01:00]} 23. Nxc5 {[%clk 0:00:42.8]} 23...
Bxc4 {[%clk 0:00:56.5]} 24. Qg3+ {[%clk 0:00:42.8]} 24... Kh8 {[%clk 0:00:56]}
25. Qxe5+ {[%clk 0:00:41.7]} 25... Kg8 {[%clk 0:00:55.8]} 26. Nd7 {[%clk
0:00:41.7]} 26... Qb5 {[%clk 0:00:46]} 27. Qg3+ {[%clk 0:00:38.9]} 27... Kf7
{[%clk 0:00:43.4]} 28. Nxf8 {[%clk 0:00:27.2]} 28... Bxf1 {[%clk 0:00:43.4]} 29.
Nxh7 {[%clk 0:00:21.6]} 29... Bc4 {[%clk 0:00:35.7]} 30. Ng5+ {[%clk 0:00:21.2]}
30... Kf6 {[%clk 0:00:34.4]} 31. Nf3 {[%clk 0:00:20.9]} 31... Rg8 {[%clk
0:00:32.7]} 32. Qh4+ {[%clk 0:00:20.7]} 32... Ke6 {[%clk 0:00:31.5]} 33. Nd4+
{[%clk 0:00:19.8]} 1-0

[Event "*** Titled Tuesday Blitz"]
[Site "Chess.com"]
[Date "2020.05.12"]
[Round "4"]
[White "Stronger1799"]
[Black "Filip_Covic"]
[Result "0-1"]
[WhiteElo "2274"]
[BlackElo "2461"]
[TimeControl "180+1"]
[EndTime "10:38:15 PDT"]
[Termination "Filip_Covic won by resignation"]

1. e4 {[%clk 0:02:59.1]} 1... c5 {[%clk 0:03:00.6]} 2. Nf3 {[%clk 0:02:58.8]}
2... Nc6 {[%clk 0:03:01.2]} 3. d4 {[%clk 0:02:59]} 3... cxd4 {[%clk 0:03:01.9]}
4. Nxd4 {[%clk 0:02:59.9]} 4... e5 {[%clk 0:03:02.1]} 5. Nb5 {[%clk 0:03:00]}
5... Nf6 {[%clk 0:03:01.6]} 6. N1c3 {[%clk 0:02:42.8]} 6... d6 {[%clk
0:03:00.4]} 7. a4 {[%clk 0:02:42.5]} 7... a6 {[%clk 0:02:57.1]} 8. Na3 {[%clk
0:02:42.7]} 8... Be7 {[%clk 0:02:54.2]} 9. Bc4 {[%clk 0:02:41.1]} 9... O-O
{[%clk 0:02:53.6]} 10. O-O {[%clk 0:02:41.2]} 10... Nd7 {[%clk 0:02:46.2]} 11.
Be3 {[%clk 0:02:35.9]} 11... Nc5 {[%clk 0:02:33.3]} 12. Qd2 {[%clk 0:02:12.9]}
12... Be6 {[%clk 0:02:06.4]} 13. Rad1 {[%clk 0:02:10.4]} 13... Qa5 {[%clk
0:01:11.4]} 14. Bxe6 {[%clk 0:01:16.9]} 14... Nxe6 {[%clk 0:01:03.2]} 15. Nd5
{[%clk 0:00:46.2]} 15... Qxa4 {[%clk 0:00:55.5]} 16. Nxe7+ {[%clk 0:00:44.2]}
16... Nxe7 {[%clk 0:00:55.1]} 17. Qxd6 {[%clk 0:00:45.1]} 17... Nc6 {[%clk
0:00:50.7]} 18. Bb6 {[%clk 0:00:43]} 18... Qxe4 {[%clk 0:00:45.4]} 19. Rfe1
{[%clk 0:00:41.1]} 19... Qg4 {[%clk 0:00:40.6]} 20. h3 {[%clk 0:00:39.8]} 20...
Qh5 {[%clk 0:00:38.4]} 21. Nc4 {[%clk 0:00:38.7]} 21... Rfd8 {[%clk 0:00:31.1]}
22. Bxd8 {[%clk 0:00:37.7]} 22... Rxd8 {[%clk 0:00:32]} 23. g4 {[%clk
0:00:03.8]} 23... Qxh3 {[%clk 0:00:31.1]} 24. Qa3 {[%clk 0:00:02.5]} 24... Qxg4+
{[%clk 0:00:28.7]} 25. Qg3 {[%clk 0:00:01.6]} 25... Qxc4 {[%clk 0:00:24.9]} 0-1

[Event "*** Titled Tuesday Blitz"]
[Site "Chess.com"]
[Date "2020.05.12"]
[Round "4"]
[White "ThunderrPanda"]
[Black "TregubovP"]
[Result "0-1"]
[WhiteElo "2791"]
[BlackElo "2536"]
[TimeControl "180+1"]
[EndTime "10:38:16 PDT"]
[Termination "TregubovP won by checkmate"]

1. e4 {[%clk 0:02:58]} 1... e6 {[%clk 0:02:59.8]} 2. d4 {[%clk 0:02:58.1]} 2...
d5 {[%clk 0:03:00.3]} 3. Nd2 {[%clk 0:02:58.8]} 3... c5 {[%clk 0:02:59.5]} 4.
Ngf3 {[%clk 0:02:59.3]} 4... Nc6 {[%clk 0:02:58.7]} 5. exd5 {[%clk 0:03:00]}
5... exd5 {[%clk 0:02:58.1]} 6. Bb5 {[%clk 0:03:00.3]} 6... Qe7+ {[%clk
0:02:58.1]} 7. Be2 {[%clk 0:02:54.8]} 7... Qc7 {[%clk 0:02:57.5]} 8. O-O {[%clk
0:02:50.5]} 8... Nf6 {[%clk 0:02:57.5]} 9. Re1 {[%clk 0:02:20.8]} 9... cxd4
{[%clk 0:02:57.1]} 10. Nb3 {[%clk 0:02:20.2]} 10... Bb4 {[%clk 0:02:56.7]} 11.
Bd2 {[%clk 0:02:20]} 11... Bxd2 {[%clk 0:02:55.5]} 12. Qxd2 {[%clk 0:02:20.9]}
12... O-O {[%clk 0:02:54.8]} 13. Nbxd4 {[%clk 0:02:21.4]} 13... Bd7 {[%clk
0:02:55]} 14. c3 {[%clk 0:02:21.5]} 14... Rae8 {[%clk 0:02:54.8]} 15. Bd3 {[%clk
0:02:22.1]} 15... Bg4 {[%clk 0:02:30.5]} 16. h3 {[%clk 0:02:19.8]} 16... Bh5
{[%clk 0:02:28.9]} 17. Rac1 {[%clk 0:02:08]} 17... Ne4 {[%clk 0:02:22.6]} 18.
Qc2 {[%clk 0:02:07.8]} 18... Bg6 {[%clk 0:02:21.3]} 19. Re3 {[%clk 0:02:00.4]}
19... Re7 {[%clk 0:02:17.9]} 20. Rce1 {[%clk 0:02:00.3]} 20... Rfe8 {[%clk
0:02:18.2]} 21. Qd1 {[%clk 0:01:59.8]} 21... Qf4 {[%clk 0:02:07]} 22. Qc2 {[%clk
0:01:27]} 22... Na5 {[%clk 0:01:51.3]} 23. Bb5 {[%clk 0:01:12.4]} 23... Rd8
{[%clk 0:01:45.6]} 24. Qa4 {[%clk 0:01:11.6]} 24... Qc7 {[%clk 0:01:30.6]} 25.
Bf1 {[%clk 0:01:06.5]} 25... a6 {[%clk 0:01:24.1]} 26. Nh4 {[%clk 0:01:02.3]}
26... Rde8 {[%clk 0:01:18.9]} 27. Nxg6 {[%clk 0:00:59.6]} 27... hxg6 {[%clk
0:01:16.2]} 28. Nf3 {[%clk 0:00:59.6]} 28... Nc4 {[%clk 0:01:12.9]} 29. Bxc4
{[%clk 0:00:55]} 29... dxc4 {[%clk 0:01:12]} 30. Qc2 {[%clk 0:00:45.3]} 30...
Nc5 {[%clk 0:01:09.2]} 31. Rxe7 {[%clk 0:00:29.8]} 31... Rxe7 {[%clk 0:01:08.9]}
32. Qd2 {[%clk 0:00:30.4]} 32... Nd3 {[%clk 0:01:06.1]} 33. Rxe7 {[%clk
0:00:28.1]} 33... Qxe7 {[%clk 0:01:06.2]} 34. Kf1 {[%clk 0:00:28.4]} 34... b5
{[%clk 0:01:05.2]} 35. Nd4 {[%clk 0:00:28.3]} 35... Qe5 {[%clk 0:01:02.4]} 36.
b3 {[%clk 0:00:26]} 36... Qh2 {[%clk 0:01:00.6]} 37. bxc4 {[%clk 0:00:24.3]}
37... Nf4 {[%clk 0:00:51.2]} 38. Qe3 {[%clk 0:00:11.6]} 38... Qh1# {[%clk
0:00:50.4]} 0-1

[Event "*** Titled Tuesday Blitz"]
[Site "Chess.com"]
[Date "2020.05.12"]
[Round "4"]
[White "bait_or_mate"]
[Black "AtabayevSaparmyrat"]
[Result "0-1"]
[WhiteElo "2499"]
[BlackElo "2728"]
[TimeControl "180+1"]
[EndTime "10:38:16 PDT"]
[Termination "AtabayevSaparmyrat won by resignation"]

1. d4 {[%clk 0:03:00.9]} 1... Nf6 {[%clk 0:02:59.9]} 2. c4 {[%clk 0:02:53.7]}
2... e6 {[%clk 0:03:00]} 3. Nf3 {[%clk 0:02:53.9]} 3... d5 {[%clk 0:02:59.3]} 4.
g3 {[%clk 0:02:53.8]} 4... dxc4 {[%clk 0:02:59.2]} 5. Bg2 {[%clk 0:02:54.2]}
5... c6 {[%clk 0:02:56.8]} 6. O-O {[%clk 0:02:53.7]} 6... Nbd7 {[%clk
0:02:56.2]} 7. Qc2 {[%clk 0:02:51.9]} 7... b5 {[%clk 0:02:56.3]} 8. e4 {[%clk
0:02:52.1]} 8... Be7 {[%clk 0:02:55.3]} 9. Rd1 {[%clk 0:02:48.2]} 9... O-O
{[%clk 0:02:55.1]} 10. Bf4 {[%clk 0:02:43]} 10... Bb7 {[%clk 0:02:53.4]} 11. Nc3
{[%clk 0:02:42.2]} 11... Qb6 {[%clk 0:02:48.1]} 12. a4 {[%clk 0:02:33.7]} 12...
b4 {[%clk 0:02:37]} 13. a5 {[%clk 0:02:28]} 13... Qa6 {[%clk 0:02:36.2]} 14. Na4
{[%clk 0:01:55.9]} 14... c5 {[%clk 0:02:36.3]} 15. Ne5 {[%clk 0:01:35.1]} 15...
Rac8 {[%clk 0:01:59.6]} 16. Nxd7 {[%clk 0:01:20.2]} 16... Nxd7 {[%clk
0:02:00.5]} 17. Bf1 {[%clk 0:01:18.8]} 17... cxd4 {[%clk 0:01:37.6]} 18. Rxd4
{[%clk 0:01:19.7]} 18... Nc5 {[%clk 0:01:38]} 19. Rxc4 {[%clk 0:00:58.4]} 19...
Qxa5 {[%clk 0:01:06.2]} 20. Nxc5 {[%clk 0:00:46.5]} 20... Qxa1 {[%clk
0:01:04.9]} 21. Nxb7 {[%clk 0:00:47.1]} 21... Rxc4 {[%clk 0:01:04.2]} 22. Qxc4
{[%clk 0:00:47.3]} 22... Qxb2 {[%clk 0:01:02.5]} 23. Na5 {[%clk 0:00:39.1]}
23... Bf6 {[%clk 0:00:58.9]} 24. Nc6 {[%clk 0:00:38.4]} 24... b3 {[%clk
0:00:54.7]} 25. Ne5 {[%clk 0:00:38.6]} 25... Bxe5 {[%clk 0:00:54]} 26. Bxe5
{[%clk 0:00:38]} 26... Qxe5 {[%clk 0:00:54.9]} 27. Qxb3 {[%clk 0:00:38.4]} 27...
Qxe4 {[%clk 0:00:54.8]} 28. Qa3 {[%clk 0:00:37.8]} 28... Qa8 {[%clk 0:00:53.4]}
29. Bg2 {[%clk 0:00:37.4]} 29... Qb8 {[%clk 0:00:54.3]} 30. h4 {[%clk
0:00:37.8]} 30... h6 {[%clk 0:00:53.7]} 31. Bf3 {[%clk 0:00:36.5]} 31... Qb6
{[%clk 0:00:53.8]} 32. Kg2 {[%clk 0:00:36.6]} 32... a5 {[%clk 0:00:50.2]} 33.
Bd1 {[%clk 0:00:36.1]} 33... Qb4 {[%clk 0:00:50.3]} 34. Qd3 {[%clk 0:00:35.5]}
34... Qb7+ {[%clk 0:00:47.8]} 35. Kh2 {[%clk 0:00:35.4]} 35... Qd5 {[%clk
0:00:48]} 36. Qe2 {[%clk 0:00:32.6]} 36... Rd8 {[%clk 0:00:47.6]} 37. Bc2 {[%clk
0:00:32.7]} 37... Qd2 {[%clk 0:00:47.8]} 38. Qe4 {[%clk 0:00:32.5]} 38... Qxf2+
{[%clk 0:00:47.6]} 39. Kh3 {[%clk 0:00:33.1]} 39... Qf5+ {[%clk 0:00:47.7]} 40.
Qxf5 {[%clk 0:00:33.6]} 40... exf5 {[%clk 0:00:47.9]} 41. Be4 {[%clk 0:00:34.5]}
0-1

[Event "*** Titled Tuesday Blitz"]
[Site "Chess.com"]
[Date "2020.05.12"]
[Round "4"]
[White "DanilNajdin"]
[Black "BhulseATX"]
[Result "1-0"]
[WhiteElo "2291"]
[BlackElo "1965"]
[TimeControl "180+1"]
[EndTime "10:38:16 PDT"]
[Termination "DanilNajdin won by resignation"]

1. d4 {[%clk 0:03:00.9]} 1... d5 {[%clk 0:02:58.9]} 2. c4 {[%clk 0:02:55.7]}
2... e6 {[%clk 0:02:57.7]} 3. Nf3 {[%clk 0:02:53.3]} 3... Nf6 {[%clk 0:02:55.9]}
4. g3 {[%clk 0:02:51.7]} 4... dxc4 {[%clk 0:02:47]} 5. Bg2 {[%clk 0:02:24.6]}
5... c6 {[%clk 0:02:45.4]} 6. O-O {[%clk 0:02:22.5]} 6... Nbd7 {[%clk
0:02:41.9]} 7. Nbd2 {[%clk 0:02:14.4]} 7... b5 {[%clk 0:02:34.6]} 8. a4 {[%clk
0:02:10.8]} 8... Bb7 {[%clk 0:02:30.5]} 9. Qc2 {[%clk 0:02:02.5]} 9... a6 {[%clk
0:02:27.7]} 10. b3 {[%clk 0:01:59.6]} 10... cxb3 {[%clk 0:02:13.6]} 11. Nxb3
{[%clk 0:01:59.5]} 11... Bd6 {[%clk 0:02:02.9]} 12. Bf4 {[%clk 0:01:56.4]} 12...
Bxf4 {[%clk 0:02:01.5]} 13. gxf4 {[%clk 0:01:56.5]} 13... O-O {[%clk 0:02:01]}
14. Ne5 {[%clk 0:01:55.4]} 14... Nxe5 {[%clk 0:01:57.7]} 15. fxe5 {[%clk
0:01:55.7]} 15... Nd5 {[%clk 0:01:57.7]} 16. Nc5 {[%clk 0:01:55.9]} 16... Qc7
{[%clk 0:01:49.4]} 17. Rfc1 {[%clk 0:01:54.6]} 17... Bc8 {[%clk 0:01:36.4]} 18.
Be4 {[%clk 0:01:42.9]} 18... g6 {[%clk 0:01:34.1]} 19. Ra3 {[%clk 0:01:40.9]}
19... f5 {[%clk 0:01:31.1]} 20. exf6 {[%clk 0:01:38.4]} 20... Rxf6 {[%clk
0:01:19.7]} 21. axb5 {[%clk 0:01:28.1]} 21... cxb5 {[%clk 0:01:16.4]} 22. Bxd5
{[%clk 0:01:24]} 22... exd5 {[%clk 0:01:15.2]} 23. Ne4 {[%clk 0:01:22.8]} 23...
Qf7 {[%clk 0:01:07.2]} 24. Nxf6+ {[%clk 0:01:22.4]} 24... Qxf6 {[%clk
0:01:07.3]} 25. Rf3 {[%clk 0:01:22.4]} 25... Bf5 {[%clk 0:01:06.2]} 26. Qc5
{[%clk 0:01:19]} 26... Rd8 {[%clk 0:01:01.9]} 27. Ra3 {[%clk 0:01:07.4]} 27...
Qg5+ {[%clk 0:00:56.5]} 28. Rg3 {[%clk 0:01:07.1]} 28... Qd2 {[%clk 0:00:53.1]}
29. Re3 {[%clk 0:00:53.3]} 29... Be4 {[%clk 0:00:45.7]} 30. Qc7 {[%clk
0:00:48.8]} 30... Rf8 {[%clk 0:00:44.2]} 31. Qc3 {[%clk 0:00:39.4]} 31... Qa2
{[%clk 0:00:35.5]} 32. f3 {[%clk 0:00:37.8]} 32... Bf5 {[%clk 0:00:32.5]} 33.
Re7 {[%clk 0:00:37.7]} 33... Qc4 {[%clk 0:00:25.1]} 34. Qe3 {[%clk 0:00:36]} 1-0

[Event "*** Titled Tuesday Blitz"]
[Site "Chess.com"]
[Date "2020.05.12"]
[Round "4"]
[White "rynos0411"]
[Black "doons21"]
[Result "0-1"]
[WhiteElo "2326"]
[BlackElo "2518"]
[TimeControl "180+1"]
[EndTime "10:38:17 PDT"]
[Termination "doons21 won by resignation"]

1. d4 {[%clk 0:03:00.9]} 1... Nf6 {[%clk 0:03:00.1]} 2. c4 {[%clk 0:02:59.6]}
2... e6 {[%clk 0:02:58.6]} 3. Nf3 {[%clk 0:02:59]} 3... Bb4+ {[%clk 0:02:58.6]}
4. Nc3 {[%clk 0:02:53.1]} 4... Bxc3+ {[%clk 0:02:57.5]} 5. bxc3 {[%clk 0:02:53]}
5... b6 {[%clk 0:02:57.3]} 6. g3 {[%clk 0:02:52.4]} 6... Bb7 {[%clk 0:02:57.4]}
7. Bg2 {[%clk 0:02:52.8]} 7... O-O {[%clk 0:02:56.9]} 8. O-O {[%clk 0:02:52.9]}
8... Nc6 {[%clk 0:02:55.9]} 9. Qc2 {[%clk 0:02:50.8]} 9... Na5 {[%clk
0:02:55.6]} 10. Nd2 {[%clk 0:02:31.6]} 10... Bxg2 {[%clk 0:02:51.3]} 11. Kxg2
{[%clk 0:02:32.5]} 11... c5 {[%clk 0:02:50.8]} 12. e4 {[%clk 0:02:31]} 12... d6
{[%clk 0:02:50]} 13. Qd3 {[%clk 0:02:23.4]} 13... Qe7 {[%clk 0:02:46]} 14. Nb3
{[%clk 0:02:09.1]} 14... Nc6 {[%clk 0:02:41.1]} 15. Bg5 {[%clk 0:02:07.3]} 15...
h6 {[%clk 0:02:40.4]} 16. Bd2 {[%clk 0:01:57.8]} 16... Rac8 {[%clk 0:02:30.8]}
17. f4 {[%clk 0:01:48.1]} 17... Qb7 {[%clk 0:02:25.5]} 18. Kg1 {[%clk
0:01:35.6]} 18... a5 {[%clk 0:02:19]} 19. d5 {[%clk 0:01:31.7]} 19... Ne7 {[%clk
0:02:14.6]} 20. e5 {[%clk 0:01:18.6]} 20... dxe5 {[%clk 0:02:12]} 21. fxe5
{[%clk 0:01:19.5]} 21... Nfxd5 {[%clk 0:02:12.3]} 22. cxd5 {[%clk 0:01:18.8]}
22... c4 {[%clk 0:02:11.1]} 23. Qd4 {[%clk 0:00:50.2]} 23... cxb3 {[%clk
0:02:09.3]} 24. dxe6 {[%clk 0:00:43.7]} 24... fxe6 {[%clk 0:02:02.5]} 25. axb3
{[%clk 0:00:39.7]} 25... Nf5 {[%clk 0:01:55.7]} 26. Qg4 {[%clk 0:00:35.1]} 26...
Qd5 {[%clk 0:01:53.7]} 27. Rf2 {[%clk 0:00:23.3]} 27... Qxb3 {[%clk 0:01:48.7]}
28. Raf1 {[%clk 0:00:19.1]} 28... Qd5 {[%clk 0:00:59]} 29. Qg6 {[%clk
0:00:15.6]} 29... Ne7 {[%clk 0:00:45.9]} 30. Qg4 {[%clk 0:00:12.4]} 30... Rxf2
{[%clk 0:00:42.7]} 31. Rxf2 {[%clk 0:00:13.3]} 31... Nf5 {[%clk 0:00:43.2]} 32.
Qg6 {[%clk 0:00:12.8]} 32... Rf8 {[%clk 0:00:37]} 33. g4 {[%clk 0:00:10.7]}
33... Nh4 {[%clk 0:00:37.5]} 34. Rxf8+ {[%clk 0:00:04.1]} 34... Kxf8 {[%clk
0:00:38.4]} 0-1